[Event "Titled Tuesday Blitz December 27 Early 2022"]
[White "Donskov, Anatoly"]
[Black "Sonis, Francesco"]
[WhiteFideId "24143413"]
[BlackFideId "895733"]
[WhiteElo "2279"]
[BlackElo "2554"]
[Result "1-0"]
[Round "04"]
[TimeControl "180+2"]
[Date "2022.12.27"]
[WhiteClock "0:00:12"]
[BlackClock "0:00:30"]

1. e4 {[%clk 0:03:00]}  g6 {[%clk 0:02:58]} 2. d4 {[%clk 0:02:59]}  Bg7 {[%clk 0:02:58]} 3. Nf3 {[%clk 0:02:53]}  d5 {[%clk 0:02:57]} 4. e5 {[%clk 0:02:48]}  c5 {[%clk 0:02:54]} 5. c3 {[%clk 0:02:47]}  Nc6 {[%clk 0:02:50]} 6. h3 {[%clk 0:02:45]}  Bf5 {[%clk 0:02:40]} 7. Bd3 {[%clk 0:02:35]}  Be4 {[%clk 0:02:36]} 8. O-O {[%clk 0:02:08]}  Nh6 {[%clk 0:02:30]} 9. Bb5 {[%clk 0:01:48]}  O-O {[%clk 0:02:23]} 10. Bxc6 {[%clk 0:01:47]}  bxc6 {[%clk 0:02:23]} 11. Re1 {[%clk 0:01:35]}  cxd4 {[%clk 0:02:17]} 12. cxd4 {[%clk 0:01:35]}  Nf5 {[%clk 0:02:12]} 13. Ng5 {[%clk 0:01:22]}  Bxb1 {[%clk 0:02:11]} 14. Rxb1 {[%clk 0:01:23]}  Qb6 {[%clk 0:02:10]} 15. Nf3 {[%clk 0:01:19]}  c5 {[%clk 0:02:03]} 16. dxc5 {[%clk 0:01:18]}  Qxc5 {[%clk 0:02:03]} 17. b4 {[%clk 0:01:19]}  Qc4 {[%clk 0:02:00]} 18. a4 {[%clk 0:01:10]}  Rfb8 {[%clk 0:01:59]} 19. Ba3 {[%clk 0:01:08]}  Bh6 {[%clk 0:01:57]} 20. e6 {[%clk 0:01:03]}  f6 {[%clk 0:01:53]} 21. b5 {[%clk 0:01:02]}  a6 {[%clk 0:01:40]} 22. g4 {[%clk 0:00:51]}  Ng7 {[%clk 0:01:34]} 23. Bxe7 {[%clk 0:00:46]}  axb5 {[%clk 0:01:33]} 24. axb5 {[%clk 0:00:47]}  Re8 {[%clk 0:01:16]} 25. Bxf6 {[%clk 0:00:41]}  Nxe6 {[%clk 0:01:16]} 26. b6 {[%clk 0:00:34]}  Rab8 {[%clk 0:01:15]} 27. b7 {[%clk 0:00:30]}  Bf4 {[%clk 0:01:09]} 28. Be5 {[%clk 0:00:20]}  Bxe5 {[%clk 0:01:05]} 29. Nxe5 {[%clk 0:00:21]}  Qc7 {[%clk 0:01:05]} 30. Qxd5 {[%clk 0:00:20]}  Kg7 {[%clk 0:01:02]} 31. Nc6 {[%clk 0:00:18]}  Nf4 {[%clk 0:00:54]} 32. Qd4+ {[%clk 0:00:16]}  Kh6 {[%clk 0:00:55]} 33. Nxb8 {[%clk 0:00:14]}  Rxb8 {[%clk 0:00:48]} 34. Qe5 {[%clk 0:00:12]}  Nxh3+ {[%clk 0:00:39]} 35. Kh2 {[%clk 0:00:12]}  Qxe5+ {[%clk 0:00:38]} 36. Rxe5 {[%clk 0:00:13]}  Nxf2 {[%clk 0:00:37]} 37. g5+ {[%clk 0:00:11]}  Kg7 {[%clk 0:00:30]} 38. Rc5 {[%clk 0:00:12]} 1-0


[Site "https://www.chess.com"]

[Event "Titled Tuesday Blitz December 27 Early 2022"]
[White "Fajdetic, Hrvoje"]
[Black "Janaszak, Dawid"]
[WhiteFideId "14501945"]
[BlackFideId "1119206"]
[WhiteElo "2151"]
[BlackElo "2316"]
[Result "0-1"]
[Round "04"]
[TimeControl "180+2"]
[Date "2022.12.27"]
[WhiteClock "0:00:03"]
[BlackClock "0:00:59"]

1. d4 {[%clk 0:02:58]}  Nf6 {[%clk 0:02:59]} 2. Bf4 {[%clk 0:02:56]}  c5 {[%clk 0:02:58]} 3. d5 {[%clk 0:02:46]}  d6 {[%clk 0:02:54]} 4. Nc3 {[%clk 0:02:45]}  g6 {[%clk 0:02:54]} 5. e4 {[%clk 0:02:44]}  Bg7 {[%clk 0:02:55]} 6. Be2 {[%clk 0:02:43]}  O-O {[%clk 0:02:53]} 7. Nf3 {[%clk 0:02:41]}  b5 {[%clk 0:02:52]} 8. Bxb5 {[%clk 0:02:32]}  Nxe4 {[%clk 0:02:51]} 9. Nxe4 {[%clk 0:02:31]}  Qa5+ {[%clk 0:02:51]} 10. c3 {[%clk 0:02:28]}  Qxb5 {[%clk 0:02:51]} 11. Qe2 {[%clk 0:02:25]}  Qa4 {[%clk 0:02:39]} 12. b3 {[%clk 0:02:08]}  Qa5 {[%clk 0:02:31]} 13. Bd2 {[%clk 0:02:03]}  Bb7 {[%clk 0:02:13]} 14. c4 {[%clk 0:01:54]}  Qa3 {[%clk 0:02:10]} 15. Bc1 {[%clk 0:01:45]}  Qa5+ {[%clk 0:02:07]} 16. Bd2 {[%clk 0:01:41]}  Qb6 {[%clk 0:02:05]} 17. Rc1 {[%clk 0:01:32]}  e5 {[%clk 0:02:00]} 18. dxe6 {[%clk 0:01:22]}  fxe6 {[%clk 0:02:00]} 19. Neg5 {[%clk 0:00:52]}  Re8 {[%clk 0:01:59]} 20. Bc3 {[%clk 0:00:44]}  e5 {[%clk 0:01:59]} 21. O-O {[%clk 0:00:35]}  Nc6 {[%clk 0:01:59]} 22. Rfe1 {[%clk 0:00:19]}  Qc7 {[%clk 0:01:52]} 23. Ne4 {[%clk 0:00:16]}  Rad8 {[%clk 0:01:50]} 24. Qd3 {[%clk 0:00:15]}  Nd4 {[%clk 0:01:49]} 25. Bxd4 {[%clk 0:00:15]}  exd4 {[%clk 0:01:50]} 26. Neg5 {[%clk 0:00:14]}  Qc6 {[%clk 0:01:44]} 27. Ne6 {[%clk 0:00:13]}  Rc8 {[%clk 0:01:39]} 28. Nxg7 {[%clk 0:00:13]}  Kxg7 {[%clk 0:01:39]} 29. Rxe8 {[%clk 0:00:13]}  Qxe8 {[%clk 0:01:33]} 30. Re1 {[%clk 0:00:14]}  Qd7 {[%clk 0:01:31]} 31. h3 {[%clk 0:00:12]}  Re8 {[%clk 0:01:30]} 32. Qd2 {[%clk 0:00:12]}  Qc6 {[%clk 0:01:26]} 33. Rxe8 {[%clk 0:00:09]}  Qxe8 {[%clk 0:01:27]} 34. Qf4 {[%clk 0:00:09]}  Qe7 {[%clk 0:01:24]} 35. Ng5 {[%clk 0:00:08]}  d3 {[%clk 0:01:13]} 36. Nf3 {[%clk 0:00:07]}  Bxf3 {[%clk 0:01:09]} 37. gxf3 {[%clk 0:00:07]}  Qf6 {[%clk 0:01:03]} 38. Qd2 {[%clk 0:00:06]}  Qxf3 {[%clk 0:01:02]} 39. Kh2 {[%clk 0:00:06]}  Qe2 {[%clk 0:00:59]} 40. Qf4 {[%clk 0:00:05]}  Qe5 {[%clk 0:01:00]} 41. Kg3 {[%clk 0:00:03]}  Qxf4+ {[%clk 0:00:59]} 0-1


[Site "https://www.chess.com"]

[Event "Titled Tuesday Blitz December 27 Early 2022"]
[White "Feng, Eric"]
[Black "Tatarinov, Dmitry"]
[WhiteFideId "30952590"]
[BlackFideId "24160067"]
[WhiteElo "1951"]
[BlackElo "2310"]
[Result "1-0"]
[Round "04"]
[TimeControl "180+2"]
[Date "2022.12.27"]
[WhiteClock "0:00:23"]
[BlackClock "0:01:33"]

1. d4 {[%clk 0:02:59]}  Nf6 {[%clk 0:02:58]} 2. c4 {[%clk 0:02:59]}  e6 {[%clk 0:02:59]} 3. Nf3 {[%clk 0:02:57]}  d5 {[%clk 0:02:59]} 4. g3 {[%clk 0:02:57]}  Be7 {[%clk 0:02:59]} 5. Bg2 {[%clk 0:02:58]}  O-O {[%clk 0:02:59]} 6. O-O {[%clk 0:02:58]}  dxc4 {[%clk 0:03:00]} 7. Ne5 {[%clk 0:02:58]}  Nc6 {[%clk 0:02:59]} 8. Bxc6 {[%clk 0:02:59]}  bxc6 {[%clk 0:03:00]} 9. Nxc6 {[%clk 0:03:00]}  Qd7 {[%clk 0:02:59]} 10. Nxe7+ {[%clk 0:03:00]}  Qxe7 {[%clk 0:03:00]} 11. Qc2 {[%clk 0:03:00]}  e5 {[%clk 0:02:55]} 12. dxe5 {[%clk 0:03:00]}  Qxe5 {[%clk 0:02:55]} 13. Qxc4 {[%clk 0:03:00]}  Re8 {[%clk 0:02:47]} 14. Nc3 {[%clk 0:02:55]}  Bh3 {[%clk 0:02:45]} 15. Rd1 {[%clk 0:02:43]}  Ng4 {[%clk 0:02:39]} 16. Bf4 {[%clk 0:02:34]}  Qh5 {[%clk 0:02:38]} 17. f3 {[%clk 0:02:27]}  Nxh2 {[%clk 0:02:32]} 18. Rd5 {[%clk 0:01:59]}  Nxf3+ {[%clk 0:02:22]} 19. exf3 {[%clk 0:01:57]}  Qxf3 {[%clk 0:02:20]} 20. Rd2 {[%clk 0:01:45]}  Rad8 {[%clk 0:02:10]} 21. Rf2 {[%clk 0:01:43]}  Qh5 {[%clk 0:01:59]} 22. Qc6 {[%clk 0:01:10]}  Be6 {[%clk 0:01:42]} 23. Re1 {[%clk 0:00:58]}  Rd7 {[%clk 0:01:32]} 24. Rxe6 {[%clk 0:00:31]}  Rd1+ {[%clk 0:01:32]} 25. Nxd1 {[%clk 0:00:28]}  Qxd1+ {[%clk 0:01:33]} 26. Kg2 {[%clk 0:00:23]}  Rxe6 {[%clk 0:01:33]} 27. Qa8+ {[%clk 0:00:23]} 1-0


[Site "https://www.chess.com"]

[Event "Titled Tuesday Blitz December 27 Early 2022"]
[White "Ferreira, Vitor Hugo Vieira"]
[Black "Abdilkhair, Abilmansur"]
[WhiteFideId "2119765"]
[BlackFideId "13716417"]
[WhiteElo "2128"]
[BlackElo "2268"]
[Result "0-1"]
[Round "04"]
[TimeControl "180+2"]
[Date "2022.12.27"]
[WhiteClock "0:01:45"]
[BlackClock "0:01:55"]

1. e4 {[%clk 0:02:55]}  e5 {[%clk 0:02:59]} 2. Nf3 {[%clk 0:02:54]}  Nc6 {[%clk 0:03:00]} 3. Bb5 {[%clk 0:02:54]}  a6 {[%clk 0:03:00]} 4. Ba4 {[%clk 0:02:54]}  Nf6 {[%clk 0:03:00]} 5. O-O {[%clk 0:02:53]}  Be7 {[%clk 0:03:00]} 6. Re1 {[%clk 0:02:53]}  b5 {[%clk 0:03:00]} 7. Bb3 {[%clk 0:02:53]}  O-O {[%clk 0:03:01]} 8. d4 {[%clk 0:02:51]}  d6 {[%clk 0:02:58]} 9. c3 {[%clk 0:02:50]}  Bg4 {[%clk 0:02:58]} 10. d5 {[%clk 0:02:50]}  Na5 {[%clk 0:02:57]} 11. Bc2 {[%clk 0:02:49]}  c6 {[%clk 0:02:58]} 12. h3 {[%clk 0:02:49]}  Bc8 {[%clk 0:02:53]} 13. dxc6 {[%clk 0:02:43]}  Qc7 {[%clk 0:02:52]} 14. Nbd2 {[%clk 0:02:43]}  Qxc6 {[%clk 0:02:52]} 15. Nf1 {[%clk 0:02:43]}  Nc4 {[%clk 0:02:35]} 16. Ng3 {[%clk 0:02:40]}  Be6 {[%clk 0:02:32]} 17. Nh4 {[%clk 0:02:39]}  Rfe8 {[%clk 0:02:27]} 18. Qf3 {[%clk 0:02:33]}  d5 {[%clk 0:02:22]} 19. Nhf5 {[%clk 0:02:29]}  Bxf5 {[%clk 0:02:16]} 20. Qxf5 {[%clk 0:02:27]}  Nd6 {[%clk 0:02:01]} 21. Qxe5 {[%clk 0:02:23]}  Ndxe4 {[%clk 0:01:58]} 22. Nxe4 {[%clk 0:02:17]}  dxe4 {[%clk 0:01:56]} 23. Bxe4 {[%clk 0:02:03]}  Nxe4 {[%clk 0:01:56]} 24. Qxe4 {[%clk 0:02:03]}  Bd6 {[%clk 0:01:56]} 25. Qxc6 {[%clk 0:01:45]}  Rxe1# {[%clk 0:01:55]} 0-1


[Site "https://www.chess.com"]

[Event "Titled Tuesday Blitz December 27 Early 2022"]
[White "Flis, Pawel"]
[Black "Bettalli, Francesco"]
[WhiteFideId "1112864"]
[BlackFideId "2816453"]
[WhiteElo "1879"]
[BlackElo "2252"]
[Result "0-1"]
[Round "04"]
[TimeControl "180+2"]
[Date "2022.12.27"]
[WhiteClock "0:00:01"]
[BlackClock "0:01:37"]

1. e4 {[%clk 0:03:00]}  g6 {[%clk 0:02:57]} 2. d4 {[%clk 0:02:59]}  Bg7 {[%clk 0:02:58]} 3. Nc3 {[%clk 0:03:00]}  c6 {[%clk 0:02:58]} 4. Nf3 {[%clk 0:02:58]}  d6 {[%clk 0:02:58]} 5. h3 {[%clk 0:02:57]}  Nf6 {[%clk 0:02:58]} 6. Be3 {[%clk 0:02:56]}  Qa5 {[%clk 0:02:58]} 7. Qd2 {[%clk 0:02:55]}  Nbd7 {[%clk 0:02:59]} 8. O-O-O {[%clk 0:02:45]}  b5 {[%clk 0:02:59]} 9. Kb1 {[%clk 0:02:45]}  Nb6 {[%clk 0:02:54]} 10. Bd3 {[%clk 0:02:43]}  Be6 {[%clk 0:02:52]} 11. Nd5 {[%clk 0:02:16]}  Qxd2 {[%clk 0:02:50]} 12. Nxf6+ {[%clk 0:02:14]}  Bxf6 {[%clk 0:02:51]} 13. Rxd2 {[%clk 0:02:13]}  O-O-O {[%clk 0:02:45]} 14. e5 {[%clk 0:02:11]}  dxe5 {[%clk 0:02:42]} 15. Nxe5 {[%clk 0:02:04]}  Bxe5 {[%clk 0:02:41]} 16. dxe5 {[%clk 0:02:03]}  Kb7 {[%clk 0:02:41]} 17. Rhd1 {[%clk 0:02:00]}  Rd7 {[%clk 0:02:33]} 18. Be4 {[%clk 0:01:53]}  Rhd8 {[%clk 0:02:32]} 19. Rxd7+ {[%clk 0:01:50]}  Rxd7 {[%clk 0:02:32]} 20. Rxd7+ {[%clk 0:01:49]}  Bxd7 {[%clk 0:02:33]} 21. b3 {[%clk 0:01:47]}  Bf5 {[%clk 0:02:23]} 22. Bf3 {[%clk 0:01:30]}  Nd7 {[%clk 0:02:22]} 23. g4 {[%clk 0:01:26]}  Nxe5 {[%clk 0:02:18]} 24. Bxc6+ {[%clk 0:00:42]}  Nxc6 {[%clk 0:02:19]} 25. gxf5 {[%clk 0:00:42]}  gxf5 {[%clk 0:02:20]} 26. Kb2 {[%clk 0:00:39]}  e5 {[%clk 0:02:08]} 27. c4 {[%clk 0:00:36]}  f4 {[%clk 0:02:07]} 28. Bc5 {[%clk 0:00:31]}  bxc4 {[%clk 0:02:04]} 29. bxc4 {[%clk 0:00:31]}  e4 {[%clk 0:02:04]} 30. Kc3 {[%clk 0:00:30]}  Kc7 {[%clk 0:02:02]} 31. a4 {[%clk 0:00:24]}  Kd7 {[%clk 0:02:02]} 32. Kd2 {[%clk 0:00:19]}  Ke6 {[%clk 0:02:01]} 33. Ke2 {[%clk 0:00:19]}  a6 {[%clk 0:02:01]} 34. Bf8 {[%clk 0:00:15]}  Ne5 {[%clk 0:01:56]} 35. Bh6 {[%clk 0:00:13]}  Nxc4 {[%clk 0:01:56]} 36. Bxf4 {[%clk 0:00:12]}  f5 {[%clk 0:01:53]} 37. Bh6 {[%clk 0:00:09]}  Ne5 {[%clk 0:01:52]} 38. Bf8 {[%clk 0:00:07]}  f4 {[%clk 0:01:50]} 39. Bc5 {[%clk 0:00:05]}  Kf5 {[%clk 0:01:50]} 40. Bd4 {[%clk 0:00:04]}  Nf3 {[%clk 0:01:49]} 41. Bc5 {[%clk 0:00:03]}  h5 {[%clk 0:01:50]} 42. Kf1 {[%clk 0:00:02]}  Ng5 {[%clk 0:01:45]} 43. Kg2 {[%clk 0:00:01]}  Ne6 {[%clk 0:01:41]} 44. Bb6 {[%clk 0:00:01]}  Nf8 {[%clk 0:01:37]} 45. a5 {[%clk 0:00:01]}  Nd7 {[%clk 0:01:37]} 0-1


[Site "https://www.chess.com"]

[Event "Titled Tuesday Blitz December 27 Early 2022"]
[White "Galchenko, Matvey"]
[Black "Karas, Marek"]
[WhiteFideId "24175480"]
[BlackFideId "14928558"]
[WhiteElo "2438"]
[BlackElo "2227"]
[Result "0-1"]
[Round "04"]
[TimeControl "180+2"]
[Date "2022.12.27"]
[WhiteClock "0:00:10"]
[BlackClock "0:00:04"]

1. f4 {[%clk 0:02:31]}  d5 {[%clk 0:02:58]} 2. Nf3 {[%clk 0:02:31]}  Bg4 {[%clk 0:02:58]} 3. Ne5 {[%clk 0:02:32]}  Bf5 {[%clk 0:02:51]} 4. c4 {[%clk 0:02:31]}  Nc6 {[%clk 0:02:29]} 5. e3 {[%clk 0:02:07]}  Nxe5 {[%clk 0:02:26]} 6. fxe5 {[%clk 0:02:08]}  e6 {[%clk 0:02:14]} 7. Qb3 {[%clk 0:02:07]}  Rb8 {[%clk 0:01:50]} 8. Nc3 {[%clk 0:02:03]}  c6 {[%clk 0:01:50]} 9. d4 {[%clk 0:01:58]}  Nh6 {[%clk 0:01:45]} 10. Be2 {[%clk 0:01:55]}  Qh4+ {[%clk 0:01:41]} 11. g3 {[%clk 0:01:53]}  Qh3 {[%clk 0:01:39]} 12. Bd2 {[%clk 0:01:50]}  Ng4 {[%clk 0:01:36]} 13. Bf1 {[%clk 0:01:33]}  Qh5 {[%clk 0:01:33]} 14. Be2 {[%clk 0:01:10]}  Qh3 {[%clk 0:01:32]} 15. cxd5 {[%clk 0:00:31]}  exd5 {[%clk 0:01:33]} 16. O-O-O {[%clk 0:00:15]}  Nf2 {[%clk 0:01:24]} 17. Rhg1 {[%clk 0:00:15]}  Nxd1 {[%clk 0:01:22]} 18. Rxd1 {[%clk 0:00:14]}  Be7 {[%clk 0:01:20]} 19. Rf1 {[%clk 0:00:11]}  O-O {[%clk 0:01:18]} 20. Rf2 {[%clk 0:00:11]}  Bg4 {[%clk 0:01:17]} 21. Bf1 {[%clk 0:00:11]}  Qh5 {[%clk 0:01:15]} 22. Ne2 {[%clk 0:00:11]}  Bg5 {[%clk 0:01:05]} 23. h3 {[%clk 0:00:09]}  Bxe2 {[%clk 0:01:01]} 24. Rxe2 {[%clk 0:00:09]}  Qf3 {[%clk 0:00:59]} 25. Qd1 {[%clk 0:00:08]}  Qxg3 {[%clk 0:00:55]} 26. Rg2 {[%clk 0:00:08]}  Qh4 {[%clk 0:00:55]} 27. Rg4 {[%clk 0:00:07]}  Qh6 {[%clk 0:00:55]} 28. Qf3 {[%clk 0:00:07]}  f6 {[%clk 0:00:52]} 29. e6 {[%clk 0:00:03]}  Rbe8 {[%clk 0:00:48]} 30. Bd3 {[%clk 0:00:02]}  g6 {[%clk 0:00:40]} 31. Qg3 {[%clk 0:00:01]}  Rxe6 {[%clk 0:00:33]} 32. h4 {[%clk 0:00:02]}  Bxe3 {[%clk 0:00:33]} 33. Bxg6 {[%clk 0:00:02]}  Bxd2+ {[%clk 0:00:32]} 34. Kc2 {[%clk 0:00:03]}  Re7 {[%clk 0:00:15]} 35. Bf5+ {[%clk 0:00:01]}  Rg7 {[%clk 0:00:13]} 36. Be6+ {[%clk 0:00:01]}  Kh8 {[%clk 0:00:13]} 37. Bf5 {[%clk 0:00:01]}  Rxg4 {[%clk 0:00:12]} 38. Qxg4 {[%clk 0:00:02]}  Qg7 {[%clk 0:00:11]} 39. Qh5 {[%clk 0:00:02]}  Bh6 {[%clk 0:00:11]} 40. Bd3 {[%clk 0:00:02]}  Rg8 {[%clk 0:00:09]} 41. Qf5 {[%clk 0:00:02]}  Rf8 {[%clk 0:00:10]} 42. Qe6 {[%clk 0:00:03]}  Qf7 {[%clk 0:00:10]} 43. Qf5 {[%clk 0:00:03]}  Qg7 {[%clk 0:00:10]} 44. Kb3 {[%clk 0:00:04]}  Bd2 {[%clk 0:00:09]} 45. a4 {[%clk 0:00:04]}  Ba5 {[%clk 0:00:09]} 46. h5 {[%clk 0:00:04]}  Bb6 {[%clk 0:00:09]} 47. Kc3 {[%clk 0:00:04]}  Ba5+ {[%clk 0:00:07]} 48. b4 {[%clk 0:00:05]}  Bb6 {[%clk 0:00:07]} 49. a5 {[%clk 0:00:05]}  Bd8 {[%clk 0:00:07]} 50. Kb3 {[%clk 0:00:06]}  b6 {[%clk 0:00:07]} 51. a6 {[%clk 0:00:06]}  c5 {[%clk 0:00:05]} 52. dxc5 {[%clk 0:00:05]}  bxc5 {[%clk 0:00:06]} 53. bxc5 {[%clk 0:00:06]}  Bc7 {[%clk 0:00:06]} 54. Qxd5 {[%clk 0:00:06]}  Be5 {[%clk 0:00:05]} 55. Qe4 {[%clk 0:00:06]}  Rb8+ {[%clk 0:00:05]} 56. Kc4 {[%clk 0:00:06]}  Qc7 {[%clk 0:00:05]} 57. Qf5 {[%clk 0:00:05]}  Rd8 {[%clk 0:00:04]} 58. Kb3 {[%clk 0:00:04]}  Rb8+ {[%clk 0:00:03]} 59. Kc2 {[%clk 0:00:05]}  Qxc5+ {[%clk 0:00:02]} 60. Kd1 {[%clk 0:00:05]}  Qe7 {[%clk 0:00:02]} 61. h6 {[%clk 0:00:05]}  Rd8 {[%clk 0:00:02]} 62. Ke2 {[%clk 0:00:05]}  Qd7 {[%clk 0:00:02]} 63. Qe4 {[%clk 0:00:05]}  Qxd3+ {[%clk 0:00:02]} 64. Qxd3 {[%clk 0:00:06]}  Rxd3 {[%clk 0:00:02]} 65. Kxd3 {[%clk 0:00:07]}  Bf4 {[%clk 0:00:02]} 66. Ke4 {[%clk 0:00:08]}  Bxh6 {[%clk 0:00:03]} 67. Kd5 {[%clk 0:00:09]}  Be3 {[%clk 0:00:02]} 68. Ke4 {[%clk 0:00:09]}  Bb6 {[%clk 0:00:03]} 69. Kf5 {[%clk 0:00:10]}  Kg7 {[%clk 0:00:04]} 0-1


[Site "https://www.chess.com"]

[Event "Titled Tuesday Blitz December 27 Early 2022"]
[White "Gatterer, Florian"]
[Black "Graham, Nathaniel"]
[WhiteFideId "811688"]
[BlackFideId "2007983"]
[WhiteElo "2170"]
[BlackElo "2262"]
[Result "1-0"]
[Round "04"]
[TimeControl "180+2"]
[Date "2022.12.27"]
[WhiteClock "0:00:26"]
[BlackClock "0:00:08"]

1. d4 {[%clk 0:03:00]}  d5 {[%clk 0:02:59]} 2. Nf3 {[%clk 0:03:00]}  Nf6 {[%clk 0:02:59]} 3. g3 {[%clk 0:03:01]}  c6 {[%clk 0:02:59]} 4. c4 {[%clk 0:03:00]}  Bf5 {[%clk 0:02:59]} 5. Nc3 {[%clk 0:02:52]}  e6 {[%clk 0:02:59]} 6. Qb3 {[%clk 0:02:51]}  Qb6 {[%clk 0:02:58]} 7. c5 {[%clk 0:02:52]}  Qc7 {[%clk 0:02:40]} 8. Bf4 {[%clk 0:02:50]}  Qc8 {[%clk 0:02:40]} 9. h3 {[%clk 0:02:47]}  h6 {[%clk 0:02:38]} 10. g4 {[%clk 0:02:47]}  Bh7 {[%clk 0:02:38]} 11. Qd1 {[%clk 0:02:39]}  Nbd7 {[%clk 0:02:36]} 12. Bg2 {[%clk 0:02:38]}  Be7 {[%clk 0:02:36]} 13. O-O {[%clk 0:02:38]}  O-O {[%clk 0:02:35]} 14. b4 {[%clk 0:02:38]}  Ne4 {[%clk 0:02:25]} 15. Nxe4 {[%clk 0:02:38]}  Bxe4 {[%clk 0:02:26]} 16. Ne5 {[%clk 0:02:24]}  Bxg2 {[%clk 0:02:23]} 17. Kxg2 {[%clk 0:02:25]}  Nxe5 {[%clk 0:02:19]} 18. Bxe5 {[%clk 0:02:25]}  Bd8 {[%clk 0:01:47]} 19. Bg3 {[%clk 0:02:21]}  Bc7 {[%clk 0:01:46]} 20. f4 {[%clk 0:02:21]}  f6 {[%clk 0:01:41]} 21. Qd3 {[%clk 0:02:14]}  a6 {[%clk 0:01:40]} 22. a4 {[%clk 0:02:13]}  Qe8 {[%clk 0:01:35]} 23. b5 {[%clk 0:02:06]}  cxb5 {[%clk 0:01:23]} 24. axb5 {[%clk 0:02:06]}  Qxb5 {[%clk 0:01:23]} 25. Qxb5 {[%clk 0:01:49]}  axb5 {[%clk 0:01:24]} 26. Rab1 {[%clk 0:01:49]}  Ra5 {[%clk 0:01:11]} 27. Be1 {[%clk 0:01:14]}  Ra2 {[%clk 0:00:52]} 28. Kf3 {[%clk 0:01:13]}  e5 {[%clk 0:00:27]} 29. Rxb5 {[%clk 0:01:11]}  e4+ {[%clk 0:00:17]} 30. Ke3 {[%clk 0:00:55]}  g5 {[%clk 0:00:17]} 31. fxg5 {[%clk 0:00:37]}  fxg5 {[%clk 0:00:17]} 32. Rxf8+ {[%clk 0:00:36]}  Kxf8 {[%clk 0:00:18]} 33. Rxb7 {[%clk 0:00:35]}  Bf4+ {[%clk 0:00:18]} 34. Kf2 {[%clk 0:00:35]}  Ra3 {[%clk 0:00:12]} 35. Kg2 {[%clk 0:00:31]}  Re3 {[%clk 0:00:11]} 36. Rb2 {[%clk 0:00:28]}  Rc3 {[%clk 0:00:08]} 37. Bxc3 {[%clk 0:00:26]} 1-0


[Site "https://www.chess.com"]

[Event "Titled Tuesday Blitz December 27 Early 2022"]
[White "Goncalves, Davi Sulzbacher"]
[Black "Hartikainen, Jarmo"]
[WhiteFideId "2154510"]
[BlackFideId "503134"]
[WhiteElo "2282"]
[BlackElo "2108"]
[Result "1-0"]
[Round "04"]
[TimeControl "180+2"]
[Date "2022.12.27"]
[WhiteClock "0:00:15"]
[BlackClock "0:00:16"]

1. Nf3 {[%clk 0:02:58]}  Nf6 {[%clk 0:02:58]} 2. g3 {[%clk 0:02:59]}  g6 {[%clk 0:02:58]} 3. Bg2 {[%clk 0:03:00]}  Bg7 {[%clk 0:02:59]} 4. O-O {[%clk 0:03:01]}  O-O {[%clk 0:02:59]} 5. d4 {[%clk 0:03:01]}  d5 {[%clk 0:02:59]} 6. c4 {[%clk 0:03:01]}  c6 {[%clk 0:02:59]} 7. cxd5 {[%clk 0:03:01]}  cxd5 {[%clk 0:02:59]} 8. Nc3 {[%clk 0:03:02]}  Nc6 {[%clk 0:02:59]} 9. Bf4 {[%clk 0:03:01]}  Nh5 {[%clk 0:02:50]} 10. Bg5 {[%clk 0:01:55]}  h6 {[%clk 0:02:46]} 11. Be3 {[%clk 0:01:54]}  Be6 {[%clk 0:02:39]} 12. Qd2 {[%clk 0:01:53]}  Kh7 {[%clk 0:02:38]} 13. Rac1 {[%clk 0:01:37]}  Rc8 {[%clk 0:02:37]} 14. Na4 {[%clk 0:01:36]}  b6 {[%clk 0:02:32]} 15. Nc3 {[%clk 0:01:35]}  Na5 {[%clk 0:02:31]} 16. b3 {[%clk 0:01:27]}  Qd7 {[%clk 0:02:29]} 17. Ne5 {[%clk 0:01:24]}  Qd8 {[%clk 0:01:50]} 18. Nb5 {[%clk 0:00:36]}  a6 {[%clk 0:01:34]} 19. Na7 {[%clk 0:00:36]}  Rc7 {[%clk 0:00:59]} 20. Nac6 {[%clk 0:00:34]}  Nxc6 {[%clk 0:00:58]} 21. Nxc6 {[%clk 0:00:35]}  Qc8 {[%clk 0:00:47]} 22. Nxe7 {[%clk 0:00:34]}  Qd7 {[%clk 0:00:40]} 23. Rxc7 {[%clk 0:00:35]}  Qxc7 {[%clk 0:00:40]} 24. Nxd5 {[%clk 0:00:35]}  Bxd5 {[%clk 0:00:38]} 25. Bxd5 {[%clk 0:00:36]}  Qd6 {[%clk 0:00:38]} 26. Bf3 {[%clk 0:00:35]}  Rd8 {[%clk 0:00:38]} 27. Rc1 {[%clk 0:00:31]}  Nf6 {[%clk 0:00:38]} 28. Rc6 {[%clk 0:00:31]}  Qd7 {[%clk 0:00:38]} 29. Rxb6 {[%clk 0:00:31]}  Nd5 {[%clk 0:00:38]} 30. Rxa6 {[%clk 0:00:30]}  Nxe3 {[%clk 0:00:32]} 31. fxe3 {[%clk 0:00:31]}  h5 {[%clk 0:00:32]} 32. Qd3 {[%clk 0:00:29]}  Bh6 {[%clk 0:00:32]} 33. Bxh5 {[%clk 0:00:24]}  Re8 {[%clk 0:00:30]} 34. Bxg6+ {[%clk 0:00:24]}  Kg7 {[%clk 0:00:27]} 35. Be4 {[%clk 0:00:20]}  Qe7 {[%clk 0:00:25]} 36. Rxh6 {[%clk 0:00:15]}  Qxe4 {[%clk 0:00:23]} 37. Qxe4 {[%clk 0:00:13]}  Rxe4 {[%clk 0:00:23]} 38. Rb6 {[%clk 0:00:13]}  Rxe3 {[%clk 0:00:24]} 39. Kf2 {[%clk 0:00:14]}  Rc3 {[%clk 0:00:24]} 40. a4 {[%clk 0:00:14]}  Kf8 {[%clk 0:00:19]} 41. a5 {[%clk 0:00:14]}  Ke7 {[%clk 0:00:20]} 42. a6 {[%clk 0:00:15]}  Kd7 {[%clk 0:00:19]} 43. a7 {[%clk 0:00:15]}  Rc8 {[%clk 0:00:19]} 44. Rb8 {[%clk 0:00:15]}  Rc7 {[%clk 0:00:18]} 45. a8=Q {[%clk 0:00:15]}  f6 {[%clk 0:00:19]} 46. Rd8+ {[%clk 0:00:16]}  Ke6 {[%clk 0:00:18]} 47. Qd5+ {[%clk 0:00:14]}  Ke7 {[%clk 0:00:18]} 48. Qd6+ {[%clk 0:00:14]}  Kf7 {[%clk 0:00:18]} 49. Qxc7+ {[%clk 0:00:14]}  Kg6 {[%clk 0:00:18]} 50. Qe7 {[%clk 0:00:14]}  Kf5 {[%clk 0:00:18]} 51. Rd6 {[%clk 0:00:14]}  Kg4 {[%clk 0:00:17]} 52. Rxf6 {[%clk 0:00:14]}  Kh3 {[%clk 0:00:17]} 53. Qh7+ {[%clk 0:00:14]}  Kg4 {[%clk 0:00:17]} 54. Qg7+ {[%clk 0:00:15]}  Kh3 {[%clk 0:00:16]} 55. Rh6# {[%clk 0:00:15]} 1-0


[Site "https://www.chess.com"]